fUST/lending_fUST_20250709
["ID","MTS","AMOUNT","RATE_DAILY","PERIOD"]
[370407991,1752003054589,-1449.06,0.00021917,2]
[370407992,1752003054598,-460.0,0.00021917,2]
[370407993,1752003054608,-214.31,0.00021917,2]
[370407994,1752003054618,-460.0,0.00021917,2]
[370407995,1752003054630,-460.0,0.00021917,2]
[370407996,1752003054639,-703.02,0.00021917,2]
[370407997,1752003054649,-1056.15,0.00021917,2]
[370407998,1752003054658,-831.68,0.00021917,2]
[370407999,1752003054668,-812.31,0.00021917,2]
[370408000,1752003054678,-460.0,0.00021917,2]
[370408001,1752003054688,-460.0,0.00021917,2]
[370408002,1752003054698,-599.22,0.00021917,2]
[370408003,1752003054708,-667.07,0.00021917,2]
[370408004,1752003054717,-460.0,0.00021917,2]
[370408005,1752003054727,-861.58,0.00021917,2]
[370408006,1752003054736,-151.0,0.00021918,2]
[370408007,1752003054745,-151.0,0.00021918,2]
[370408008,1752003054755,-266.991734,0.00021918,2]
[370408009,1752003054764,-151.0,0.00021918,2]
[370408010,1752003054774,-151.0,0.00021918,2]
[370408011,1752003054783,-151.0,0.00021918,2]
[370408012,1752003054793,-500.0,0.00021918,2]
[370408013,1752003054802,-500.0,0.00021918,2]
[370408014,1752003054812,-500.0,0.00021918,2]
[370408015,1752003054821,-500.0,0.00021918,2]
[370408016,1752003054831,-500.0,0.00021918,2]
[370408017,1752003054840,-500.0,0.00021918,2]
[370408018,1752003054849,-500.0,0.00021918,2]
[370408019,1752003054858,-500.0,0.00021918,2]
[370408020,1752003054868,-500.0,0.00021918,2]
[370408021,1752003054878,-500.0,0.00021918,2]
[370408022,1752003054888,-500.0,0.00021918,2]
[370408023,1752003054897,-500.0,0.00021918,2]
[370408024,1752003054907,-500.0,0.00021918,2]
[370408025,1752003054917,-500.0,0.00021918,2]
[370408026,1752003054927,-500.0,0.00021918,2]
[370408027,1752003054936,-500.0,0.00021918,2]
[370408028,1752003054946,-500.0,0.00021918,2]
[370408029,1752003054955,-519.9513217,0.00021918,2]
[370408030,1752003054964,-500.0,0.00021918,2]
[370408031,1752003054975,-500.0,0.00021918,2]
[370408032,1752003054984,-254.16348561,0.00021918,2]
[370408033,1752003054994,-174.0,0.00022,2]
[370408034,1752003055005,-895.77629269,0.00022038,6]
[370408035,1752003055016,-574.31,0.00022191,2]
[370408036,1752003055025,-460.0,0.00022191,2]
[370408037,1752003055035,-949.86,0.00022191,2]
[370408038,1752003055045,-460.0,0.00022191,2]
[370408039,1752003055055,-1449.06,0.00022191,2]
[370408040,1752003055064,-460.0,0.00022191,2]
[370408041,1752003055075,-240.56,0.00022191,2]
[370408042,1752003055085,-703.02,0.00022191,2]
[370408043,1752003055094,-1056.15,0.00022191,2]
[370408044,1752003055104,-831.68,0.00022191,2]
[370408045,1752003055115,-812.31,0.00022191,2]
[370408046,1752003055124,-460.0,0.00022191,2]
[370408047,1752003055134,-460.0,0.00022191,2]
[370408048,1752003055145,-599.22,0.00022191,2]
[370408049,1752003055156,-667.07,0.00022191,2]
[370408050,1752003055168,-460.0,0.00022191,2]
[370408051,1752003055178,-861.58,0.00022191,2]
[370408052,1752003055190,-174.0,0.00022192,7]
[370408053,1752003055200,-895.77629269,0.00022279,6]
[370408054,1752003055213,-587.0,0.0002242,2]
[370408055,1752003055222,-599.27,0.00022465,2]
[370408056,1752003055235,-574.31,0.00022465,2]
[370408057,1752003055246,-460.0,0.00022465,2]
[370408058,1752003055256,-949.86,0.00022465,2]
[370408059,1752003055265,-460.0,0.00022465,2]
[370408060,1752003055275,-1449.06,0.00022465,2]
[370408061,1752003055287,-509.68,0.00022465,2]
[370408062,1752003055296,-703.02,0.00022465,2]
[370408063,1752003055307,-1056.15,0.00022465,2]
[370408064,1752003055317,-831.68,0.00022465,2]
[370408065,1752003055328,-812.31,0.00022465,2]
[370408066,1752003055339,-460.0,0.00022465,2]
[370408067,1752003055349,-460.0,0.00022465,2]
[370408068,1752003055359,-599.22,0.00022465,2]
[370408069,1752003055369,-667.07,0.00022465,2]
[370408070,1752003055378,-460.0,0.00022465,2]
[370408071,1752003055389,-861.58,0.00022465,2]
[370408072,1752003055399,-150.0,0.00022466,2]
[370408073,1752003055411,-895.77629269,0.00022521,7]
[370408074,1752003055420,-984.49,0.00022533,2]
[370408075,1752003055430,-984.49,0.00022633,3]
[370408076,1752003055440,-984.49,0.00022733,4]
[370408077,1752003055450,-599.27,0.00022739,2]
[370408078,1752003055460,-574.31,0.00022739,2]
[370408079,1752003055470,-460.0,0.00022739,2]
[370408080,1752003055480,-949.86,0.00022739,2]
[370408081,1752003055490,-460.0,0.00022739,2]
[370408082,1752003055500,-1449.06,0.00022739,2]
[370408083,1752003055509,-703.02,0.00022739,2]
[370408084,1752003055519,-1056.15,0.00022739,2]
[370408085,1752003055529,-831.68,0.00022739,2]
[370408086,1752003055540,-812.31,0.00022739,2]
[370408087,1752003055550,-460.0,0.00022739,2]
[370408088,1752003055559,-460.0,0.00022739,2]
[370408089,1752003055569,-599.22,0.00022739,2]
[370408090,1752003055580,-667.07,0.00022739,2]
[370408091,1752003055590,-591.46,0.00022739,2]
[370408092,1752003055600,-861.58,0.00022739,2]
[370408093,1752003055608,-895.77629269,0.00022762,7]
[370408094,1752003055616,-984.49,0.00022833,4]
[370408095,1752003055624,-984.49,0.00022933,3]
[370408096,1752003055633,-231.28369723,0.00022974,2]
[370408097,1752003055642,-160.0,0.00023,3]
[370408098,1752003055652,-156.4,0.00023,2]
[370408099,1752003055662,-837.89306043,0.00023,3]
[370408100,1752003055671,-230.51100374,0.00023,3]
[370408101,1752003055682,-215.2437778,0.00023,3]
[370408102,1752003055691,-895.77629269,0.00023003,8]
[370408103,1752003055701,-599.27,0.00023013,2]
[370408104,1752003055711,-574.31,0.00023013,2]
[370408105,1752003055720,-460.0,0.00023013,2]
[370408106,1752003055730,-949.86,0.00023013,2]
[370408107,1752003055739,-460.0,0.00023013,2]
[370408108,1752003055748,-1449.06,0.00023013,2]
[370408109,1752003055758,-703.02,0.00023013,2]
[370408110,1752003055767,-1056.15,0.00023013,2]
[370408111,1752003055777,-831.68,0.00023013,2]
[370408112,1752003055786,-812.31,0.00023013,2]
[370408113,1752003055795,-460.0,0.00023013,2]
[370408114,1752003055804,-460.0,0.00023013,2]
[370408115,1752003055813,-599.22,0.00023013,2]
[370408116,1752003055822,-667.07,0.00023013,2]
[370408117,1752003055831,-861.58,0.00023013,2]
[370408118,1752003055841,-174.0,0.00023014,7]
[370408119,1752003055850,-984.49,0.00023033,3]
[370408120,1752003055859,-984.49,0.00023133,4]
[370408121,1752003055869,-5000.0,0.000232,10]
[370408122,1752003055878,-984.49,0.00023233,7]
[370408123,1752003055888,-895.77629269,0.00023245,8]
[370408124,1752003055897,-599.27,0.00023287,2]
[370408125,1752003055907,-574.31,0.00023287,2]
[370408126,1752003055917,-460.0,0.00023287,2]
[370408127,1752003055926,-949.86,0.00023287,2]
[370408128,1752003055935,-460.0,0.00023287,2]
[370408129,1752003055944,-1449.06,0.00023287,2]
[370408130,1752003055953,-703.02,0.00023287,2]
[370408131,1752003055963,-1056.15,0.00023287,2]
[370408132,1752003055972,-831.68,0.00023287,2]
[370408133,1752003055982,-812.31,0.00023287,2]
[370408134,1752003055991,-460.0,0.00023287,2]
[370408135,1752003056001,-460.0,0.00023287,2]
[370408136,1752003056011,-599.22,0.00023287,2]
[370408137,1752003056021,-667.07,0.00023287,2]
[370408138,1752003056031,-861.58,0.00023287,2]
[370408139,1752003056041,-984.49,0.00023333,3]
[370408140,1752003056052,-984.49,0.00023433,4]
[370408141,1752003056096,-895.77629269,0.00023486,9]
[370408142,1752003056106,-151.0,0.000235,7]
[370408143,1752003056115,-984.49,0.00023533,7]
[370408144,1752003056127,-599.27,0.00023561,2]
[370408145,1752003056137,-574.31,0.00023561,2]
[370408146,1752003056153,-460.0,0.00023561,2]
[370408147,1752003056165,-949.86,0.00023561,2]
[370408148,1752003056174,-318.76,0.00023561,2]
[370408149,1752003056184,-1449.06,0.00023561,2]
[370408150,1752003056194,-703.02,0.00023561,2]
[370408151,1752003056203,-1056.15,0.00023561,2]
[370408152,1752003056212,-831.68,0.00023561,2]
[370408153,1752003056222,-812.31,0.00023561,2]
[370408154,1752003056232,-460.0,0.00023561,2]
[370408155,1752003056241,-460.0,0.00023561,2]
[370408156,1752003056250,-599.22,0.00023561,2]
[370408157,1752003056259,-667.07,0.00023561,2]
[370408158,1752003056268,-861.58,0.00023561,2]
[370408159,1752003056277,-984.49,0.00023633,3]
[370408160,1752003056287,-500.0,0.00023649,2]
[370408161,1752003056296,-895.77629269,0.00023728,9]
[370408162,1752003056305,-984.49,0.00023733,3]
[370408163,1752003056315,-984.49,0.00023833,6]
[370408164,1752003056324,-599.27,0.00023835,2]
[370408165,1752003056333,-574.31,0.00023835,2]
[370408166,1752003056342,-460.0,0.00023835,2]
[370408167,1752003056352,-949.86,0.00023835,2]
[370408168,1752003056362,-1449.06,0.00023835,2]
[370408169,1752003056371,-703.02,0.00023835,2]
[370408170,1752003056380,-1056.15,0.00023835,2]
[370408171,1752003056390,-831.68,0.00023835,2]
[370408172,1752003056399,-812.31,0.00023835,2]
[370408173,1752003056409,-268.20832115,0.00023835,2]
[370408174,1752003056729,-78.90167885,0.00023835,2]
[370408175,1752003056738,-460.0,0.00023835,2]
[370408176,1752003056747,-599.22,0.00023835,2]
[370408177,1752003056756,-667.07,0.00023835,2]
[370408178,1752003056765,-861.58,0.00023835,2]
[370408179,1752003056774,-273.40157119,0.000239,2]
[370408180,1752003056783,-984.49,0.00023933,5]
[370408181,1752003056792,-895.77629269,0.00023969,10]
[370408182,1752003056801,-160.0,0.00024,7]
[370408183,1752003056810,-984.49,0.00024033,7]
[370408184,1752003056819,-151.0,0.000241,5]
[370408185,1752003056828,-574.31,0.00024109,2]
[370408186,1752003056838,-460.0,0.00024109,2]
[370408187,1752003056847,-949.86,0.00024109,2]
[370408188,1752003056856,-1449.06,0.00024109,2]
[370408189,1752003056866,-703.02,0.00024109,2]
[370408190,1752003056876,-1056.15,0.00024109,2]
[370408191,1752003056885,-831.68,0.00024109,2]
[370408192,1752003056894,-812.31,0.00024109,2]
[370408193,1752003056904,-460.0,0.00024109,2]
[370408194,1752003056913,-599.22,0.00024109,2]
[370408195,1752003056923,-667.07,0.00024109,2]
[370408196,1752003056932,-861.58,0.00024109,2]
[370408197,1752003056941,-984.49,0.00024133,4]
[370408198,1752003056950,-177.0,0.00024164,7]
[370408199,1752003056961,-895.77629269,0.0002421,10]
[370408200,1752003056972,-984.49,0.00024233,5]
[370408201,1752003056981,-984.49,0.00024333,3]
[370408202,1752003056991,-239.84119403,0.00024343,2]
[370408203,1752003057000,-150.0,0.00024356,2]
[370408204,1752003057009,-574.31,0.00024383,2]
[370408205,1752003057019,-460.0,0.00024383,2]
[370408206,1752003057028,-949.86,0.00024383,2]
[370408207,1752003057038,-1449.06,0.00024383,2]
[370408208,1752003057048,-703.02,0.00024383,2]
[370408209,1752003057058,-1056.15,0.00024383,2]
[370408210,1752003057067,-831.68,0.00024383,2]
[370408211,1752003057077,-812.31,0.00024383,2]
[370408212,1752003057087,-460.0,0.00024383,2]
[370408213,1752003057100,-599.22,0.00024383,2]
[370408214,1752003057110,-667.07,0.00024383,2]
[370408215,1752003057120,-861.58,0.00024383,2]
[370408216,1752003057130,-984.49,0.00024433,2]
[370408217,1752003057140,-823.0,0.00024441,2]
[370408218,1752003057155,-895.77629269,0.00024452,11]
[370408219,1752003057166,-2000.0,0.000245,2]
[370408220,1752003057178,-274.8,0.000245,2]
[370408221,1752003057191,-984.49,0.00024533,4]
[370408222,1752003057201,-5000.0,0.00024564,30]
[370408223,1752003057210,-5000.0,0.00024564,30]
[370408224,1752003057220,-5000.0,0.00024564,30]
[370408225,1752003057231,-5000.0,0.00024564,30]
[370408226,1752003057240,-525.03036055,0.000246,30]
[370408227,1752003057251,-984.49,0.00024633,6]
[370408228,1752003057261,-168.0,0.00024643,2]
[370408229,1752003057270,-574.31,0.00024657,2]
[370408230,1752003057279,-239.81371457,0.00024657,2]
[370408231,1752003057289,-949.86,0.00024657,2]
[370408232,1752003057299,-1449.06,0.00024657,2]
[370408233,1752003057308,-703.02,0.00024657,2]
[370408234,1752003057318,-1056.15,0.00024657,2]
[370408235,1752003057327,-831.68,0.00024657,2]
[370408236,1752003057337,-812.31,0.00024657,2]
[370408237,1752003057346,-460.0,0.00024657,2]
[370408238,1752003057355,-599.22,0.00024657,2]
[370408239,1752003057365,-667.07,0.00024657,2]
[370408240,1752003057375,-861.58,0.00024657,2]
[370408241,1752003057384,-150.0,0.00024658,2]
[370408242,1752003057394,-151.0,0.00024658,7]
[370408243,1752003057404,-191.225722,0.00024658,7]
[370408244,1752003057414,-162.09144568,0.00024658,2]
[370408245,1752003057423,-500.0,0.00024658,2]
[370408246,1752003057433,-500.0,0.00024685,2]
[370408247,1752003057443,-895.77629269,0.00024693,11]
[370408248,1752003057453,-500.0,0.00024713,2]
[370408249,1752003057463,-407.0,0.00024722,2]
[370408250,1752003057473,-984.49,0.00024733,6]
[370408251,1752003057482,-500.0,0.0002474,2]
[370408252,1752003057492,-500.0,0.00024768,2]
[370408253,1752003057501,-208.02170738,0.00024795,2]
[370408254,1752003057512,-19875.19843932,0.000248,2]
[370408255,1752003057521,-984.49,0.00024833,4]
[370408256,1752003057531,-1970.07,0.00024869,30]
[370408257,1752003057540,-53278.88289983,0.000249,2]
[370408258,1752003057555,-147966.1017413,0.000249,2]
[370408259,1752003057569,-146484.84384519,0.000249,2]
[370408260,1752003057580,-52123.62498715,0.000249,2]
[370408261,1752003057593,-293.999998,0.000249,2]
[370408262,1752003057605,-1839.59115232,0.000249,2]
[370408263,1752003057616,-7355.30643935,0.000249,2]
[370408264,1752003057628,-13197.88736837,0.000249,2]
[370408265,1752003057640,-2765.18610255,0.000249,2]
[370408266,1752003057652,-3157.4254304,0.000249,2]
[370408267,1752003057663,-923.78686849,0.000249,2]
[370408268,1752003057697,-463.49354728,0.000249,2]
[370408269,1752003057708,-5000.0,0.000249,2]
[370408270,1752003057719,-192260.62821577,0.000249,2]
[370408271,1752003057728,-574.31,0.00024931,2]
[370408272,1752003057738,-949.86,0.00024931,2]
[370408273,1752003057746,-1449.06,0.00024931,2]
[370408274,1752003057756,-256.77797796,0.00024931,2]
[370408275,1752003057768,-446.24202204,0.00024931,2]
[370408276,1752003057777,-1056.15,0.00024931,2]
[370408277,1752003057786,-831.68,0.00024931,2]
[370408278,1752003057795,-812.31,0.00024931,2]
[370408279,1752003057805,-460.0,0.00024931,2]
[370408280,1752003057814,-599.22,0.00024931,2]
[370408281,1752003057824,-667.07,0.00024931,2]
[370408282,1752003057833,-861.58,0.00024931,2]
[370408283,1752003057844,-984.49,0.00024933,6]
[370408284,1752003057853,-895.77629269,0.00024934,12]
[370408285,1752003057862,-837.89306043,0.00025,30]
[370408286,1752003057872,-230.51100374,0.00025,30]
[370408287,1752003057881,-215.2437778,0.00025,30]
[370408288,1752003057890,-168.74,0.00025,2]
[370408289,1752003057899,-984.49,0.00025033,6]
[370408290,1752003057908,-385.88982136,0.00025133,6]
[370408291,1752003058004,-252.41493609,0.00019178,2]
[370408292,1752003058017,-207.58506391,0.00019178,2]
[370408293,1752003058027,-460.0,0.00019178,2]
[370408294,1752003058036,-460.0,0.00019452,2]
[370408295,1752003058046,-163.34,0.00019726,2]
[370408296,1752003058056,-1863.00487529,0.00020609,2]
[370408297,1752003058066,-598.60017864,0.00025133,6]
[370408298,1752003058075,-895.77629269,0.00025176,12]
[370408299,1752003058084,-5000.0,0.00025187,30]
[370408300,1752003058094,-574.31,0.00025205,2]
[370408301,1752003058104,-949.86,0.00025205,2]
[370408302,1752003058113,-1449.06,0.00025205,2]
[370408303,1752003058123,-703.02,0.00025205,2]
[370408304,1752003058132,-1056.15,0.00025205,2]
[370408305,1752003058141,-831.68,0.00025205,2]
[370408306,1752003058155,-812.31,0.00025205,2]
[370408307,1752003058164,-264.83,0.00025205,2]
[370408308,1752003058174,-599.22,0.00025205,2]
[370408309,1752003058183,-667.07,0.00025205,2]
[370408310,1752003058193,-861.58,0.00025205,2]
[370408311,1752003058203,-197.16428568,0.00025232,2]
[370408312,1752003058213,-984.49,0.00025233,7]
[370408313,1752003058223,-1500.0,0.0002527,2]
[370408314,1752003058233,-1500.0,0.0002527,2]
[370408315,1752003058242,-1500.0,0.0002527,2]
[370408316,1752003058252,-1500.0,0.0002527,2]
[370408317,1752003058261,-1500.0,0.0002527,2]
[370408318,1752003058271,-1500.0,0.0002527,2]
[370408319,1752003058280,-1500.0,0.0002527,2]
[370408320,1752003058290,-1500.0,0.0002527,2]
[370408321,1752003058299,-1835.9,0.0002527,2]
[370408322,1752003058309,-1500.0,0.0002527,2]
[370408323,1752003058319,-1500.0,0.0002527,2]
[370408324,1752003058329,-500.0,0.00025293,2]
[370408325,1752003058340,-5000.0,0.00025314,30]
[370408326,1752003058350,-187737.49074454,0.00025315,20]
[370408327,1752003058362,-12979.95521345,0.00025315,20]
[370408328,1752003058485,-460.0,0.00019178,2]
[370408329,1752003058494,-460.0,0.00019178,2]
[370408330,1752003058504,-460.0,0.00019178,2]
[370408331,1752003058514,-461.09687291,0.00019178,2]
[370408332,1752003058524,-312.1468531,0.00019178,2]
[370408333,1752003058534,-460.0,0.00019452,2]
[370408334,1752003058543,-460.0,0.00019452,2]
[370408335,1752003058553,-460.0,0.00019452,2]
[370408336,1752003058563,-460.0,0.00019726,2]
[370408337,1752003058573,-460.0,0.00019726,2]
[370408338,1752003058582,-423.4,0.0002,2]
[370408339,1752003058594,-460.0,0.0002,2]
[370408340,1752003058603,-318.0,0.00020117,2]
[370408341,1752003058613,-318.0,0.00020117,2]
[370408342,1752003058623,-1929.84691743,0.00025315,20]
[370408343,1752003058635,-1199.3074713,0.00025315,20]
[370408344,1752003303087,386.97166739,0.00016801,2]
[370408345,1752003446209,421.6962264,0.00017965,2]
[370408346,1752003541091,166.0,0.00017775,2]
[370408347,1752003603185,1226265.41761811,0.00025313,120]
[370408348,1752003626238,560.780359,0.00013699,2]
[370408350,1752003657873,1483.3040563,0.00017908,2]
[370408353,1752003945116,264.98478906,0.000222,69]
[370408354,1752003950138,264.98478905,0.000222,69]
[370408355,1752003955165,264.98478905,0.000222,69]
[370408356,1752003960112,264.98478905,0.00023576,75]
[370408357,1752003991514,5336.0754578,0.00017766,2]
[370408359,1752004177260,24900.0,0.00017965,2]
[370408391,1752004237502,-178.20826843,0.00018603,2]
[370408393,1752004237512,-164.61840128,0.000187,2]
[370408395,1752004237522,-195.27333029,0.00018756,2]
[370408398,1752004237552,-12.12666971,0.00018756,2]
[370408400,1752004237562,-402.02,0.00018757,3]
[370408402,1752004237574,-950.0,0.00018765,2]
[370408404,1752004237583,-418.0000021,0.00018766,2]
[370408405,1752004237593,-217.85332819,0.00018766,2]
[370408407,1752004237610,-170.57392184,0.00018766,2]
[370408409,1752004237621,-126.21060464,0.00018766,2]
[370408522,1752004238719,-267.09860424,0.00018766,2]
[370408532,1752004238824,-106.69079112,0.00018766,2]
[370408533,1752004238834,-500.0,0.00018766,2]
[370408534,1752004238844,-500.0,0.00018766,2]
[370408535,1752004238854,-500.0,0.00018766,2]
[370408536,1752004238863,-500.0,0.00018766,2]
[370408537,1752004238873,-500.0,0.00018766,2]
[370408538,1752004238883,-500.0,0.00018766,2]
[370408539,1752004238892,-500.0,0.00018766,2]
[370408540,1752004238902,-500.0,0.00018766,2]
[370408541,1752004238912,-500.0,0.00018766,2]
[370408542,1752004238922,-500.0,0.00018766,2]
[370408543,1752004238931,-154.52719549,0.00018766,2]
[370408545,1752004238942,-500.0,0.00018766,2]
[370408546,1752004238952,-500.0,0.00018766,2]
[370408547,1752004238961,-500.0,0.00018766,2]
[370408548,1752004238971,-284.11642934,0.00018766,2]
[370408549,1752004238980,-500.0,0.00018766,2]
[370408550,1752004238990,-500.0,0.00018766,2]
[370408551,1752004239000,-500.0,0.00018766,2]
[370408552,1752004239010,-500.0,0.00018766,2]
[370408553,1752004239019,-500.0,0.00018766,2]
[370408554,1752004239029,-500.0,0.00018766,2]
[370408555,1752004239038,-231.13489964,0.00018766,2]
[370408556,1752004239048,-370000.0,0.00018767,2]
[370408557,1752004239058,-505.91839831,0.00018773,2]
[370408558,1752004239067,-500.0,0.00018773,2]
[370408559,1752004239077,-500.0,0.00018773,2]
[370408560,1752004239087,-500.0,0.00018773,2]
[370408561,1752004239096,-500.0,0.00018773,2]
[370408562,1752004239107,-500.0,0.00018773,2]
[370408563,1752004239116,-567.32498538,0.000189,2]
[370408564,1752004239126,-567.32498537,0.00019141,2]
[370408565,1752004239136,-500.0,0.00019178,2]
[370408566,1752004239335,-479.21105357,0.00019178,2]
[370408567,1752004239346,-460.0,0.00019178,2]
[370408568,1752004239355,-460.0,0.00019178,2]
[370408569,1752004239366,-460.0,0.00019178,2]
[370408570,1752004239376,-460.0,0.00019178,2]
[370408571,1752004239386,-462.0637753,0.00019178,2]
[370408572,1752004239395,-503.63774006,0.00019178,2]
[370408573,1752004239405,-460.0,0.00019178,2]
[370408574,1752004239415,-460.0,0.00019178,2]
[370408575,1752004239425,-460.07594864,0.00019178,2]
[370408576,1752004239435,-460.0,0.00019178,2]
[370408577,1752004239444,-460.0,0.00019178,2]
[370408578,1752004239454,-460.0,0.00019178,2]
[370408579,1752004239464,-487.46489355,0.00019178,2]
[370408580,1752004239473,-241.36,0.00019178,2]
[370408581,1752004239482,-460.0,0.00019178,2]
[370408582,1752004239492,-460.0,0.00019178,2]
[370408583,1752004239501,-487.58207288,0.00019178,2]
[370408584,1752004239511,-460.0,0.00019178,2]
[370408585,1752004239520,-460.0,0.00019178,2]
[370408586,1752004239535,-460.0,0.00019178,2]
[370408587,1752004239545,-460.0,0.00019178,2]
[370408588,1752004239554,-460.0,0.00019178,2]
[370408589,1752004239564,-460.0,0.00019178,2]
[370408590,1752004239574,-460.0,0.00019178,2]
[370408591,1752004239583,-465.49882219,0.00019178,2]
[370408592,1752004239593,-460.0,0.00019178,2]
[370408593,1752004239604,-460.0,0.00019178,2]
[370408594,1752004239613,-460.0,0.00019178,2]
[370408595,1752004239622,-460.0,0.00019178,2]
[370408596,1752004239632,-460.0,0.00019178,2]
[370408597,1752004239641,-460.0,0.00019178,2]
[370408598,1752004239650,-460.0,0.00019178,2]
[370408599,1752004239660,-460.0,0.00019178,2]
[370408600,1752004239669,-460.0,0.00019178,2]
[370408601,1752004239679,-500.0,0.00019178,2]
[370408602,1752004239689,-500.0,0.00019178,2]
[370408603,1752004239698,-500.0,0.00019178,2]
[370408604,1752004239707,-500.0,0.00019178,2]
[370408605,1752004239719,-500.0,0.00019178,2]
[370408606,1752004239728,-500.0,0.00019178,2]
[370408607,1752004239738,-460.0,0.00019178,2]
[370408608,1752004239747,-460.0,0.00019178,2]
[370408609,1752004239757,-460.0,0.00019178,2]
[370408610,1752004239766,-460.0,0.00019178,2]
[370408611,1752004239775,-460.0,0.00019178,2]
[370408612,1752004239785,-460.0,0.00019178,2]
[370408613,1752004239794,-460.0,0.00019178,2]
[370408614,1752004239804,-460.0,0.00019178,2]
[370408615,1752004239813,-460.0,0.00019178,2]
[370408616,1752004239822,-460.0,0.00019178,2]
[370408617,1752004239832,-547.31899522,0.00019178,2]
[370408618,1752004239841,-460.0,0.00019178,2]
[370408619,1752004239851,-460.0,0.00019178,2]
[370408620,1752004239860,-460.0,0.00019178,2]
[370408621,1752004239869,-460.0,0.00019178,2]
[370408622,1752004239879,-460.0,0.00019178,2]
[370408623,1752004239888,-460.0,0.00019178,2]
[370408624,1752004239897,-460.0,0.00019178,2]
[370408625,1752004239907,-460.0,0.00019178,2]
[370408626,1752004239916,-460.0,0.00019178,2]
[370408627,1752004239925,-460.0,0.00019178,2]
[370408628,1752004239934,-460.0,0.00019178,2]
[370408629,1752004239943,-460.0,0.00019178,2]
[370408630,1752004239953,-460.0,0.00019178,2]
[370408631,1752004239962,-460.0,0.00019178,2]
[370408632,1752004239972,-460.0,0.00019178,2]
[370408633,1752004239981,-460.0,0.00019178,2]
[370408634,1752004239992,-324.14623544,0.00019178,2]
[370408635,1752004240003,-460.0,0.00019178,2]
[370408636,1752004240012,-460.0,0.00019178,2]
[370408637,1752004240023,-460.0,0.00019178,2]
[370408638,1752004240034,-460.0,0.00019178,2]
[370408639,1752004240044,-460.0,0.00019178,2]
[370408640,1752004240055,-460.0,0.00019178,2]
[370408641,1752004240064,-433.0633059,0.00019178,2]
[370408642,1752004240074,-460.0,0.00019178,2]
[370408643,1752004240084,-460.0,0.00019178,2]
[370408644,1752004240093,-460.0,0.00019178,2]
[370408645,1752004240103,-460.0,0.00019178,2]
[370408646,1752004240112,-460.0,0.00019178,2]
[370408647,1752004240122,-460.0,0.00019178,2]
[370408648,1752004240133,-500.0,0.00019178,2]
[370408649,1752004240143,-500.0,0.00019178,2]
[370408650,1752004240153,-500.0,0.00019178,2]
[370408651,1752004240164,-460.0,0.00019178,2]
[370408652,1752004240172,-460.0,0.00019178,2]
[370408654,1752004240191,-460.0,0.00019178,2]
[370408655,1752004240203,-460.0,0.00019178,2]
[370408656,1752004240213,-460.0,0.00019178,2]
[370408657,1752004240223,-460.0,0.00019178,2]